[Event "DEN-chT XtraCon 2018-19"]
[Site "Denmark"]
[Date "2018.11.18"]
[Round "3"]
[White "Haubro, Sigfred"]
[Black "Percivaldi, Martin"]
[Result "0-1"]
[ECO "A06"]
[WhiteElo "2152"]
[BlackElo "2391"]
[Annotator "ChessBase"]
[PlyCount "70"]
[EventDate "2018.10.27"]
[EventType "team-tourn"]
[EventCountry "DEN"]
[SourceTitle "playchess.com"]
[Source "ChessBase"]
[SourceQuality "1"]
[TimeControl "40/5400+30:1800+30"]

1. Nf3 {[%emt 0:00:15]} d5 {[%emt 0:00:00]} 2. b3 {[%emt 0:00:06]} Nf6 {[%emt 0:01:10]} 3. Bb2 {[%emt 0:00:07]} Bf5 {[%emt 0:00:15]} 4. e3 {[%emt 0:00:07]} e6 {[%emt 0:00:25]} 5. Be2 {[%emt 0:00:13]} h6 {[%emt 0:00:21]} 6. O-O {[%emt 0:00:17]} Be7 {[%emt 0:01:54]} 7. d4 {[%emt 0:08:39]} Nbd7 {[%emt 0:01:05]} 8. Nbd2 {[%emt 0:00:10]} O-O {[%emt 0:00:20]} 9. Rc1 {[%emt 0:00:49]} a5 {[%emt 0:02:21]} 10. a3 {[%emt 0:01:54]} c6 {[%emt 0:00:16]} 11. c4 {[%emt 0:02:00]} Qb8 {[%emt 0:05:48]} 12. Ne5 {[%emt 0:14:13]} Nxe5 {[%emt 0:02:08]} 13. dxe5 {[%emt 0:00:07]} Nd7 {[%emt 0:00:24]} 14. Nf3 {[%emt 0:03:14]} Be4 {[%emt 0:09:11]} 15. Nd2 {[%emt 0:07:14]} Bh7 {[%emt 0:00:43]} 16. f4 {[%emt 0:02:24]} Nc5 {[%emt 0:08:04]} 17. cxd5 {[%emt 0:04:03]} cxd5 {[%emt 0:01:11]} 18. Nf3 {[%emt 0:00:48]} Rc8 {[%emt 0:01:13]} 19. Nd4 {[%emt 0:06:36]} Qa7 {[%emt 0:11:05]} 20. Nb5 {[%emt 0:01:32]} Qb6 {[%emt 0:00:24]} 21. Bd4 {[%emt 0:08:33]} Qd8 {[%emt 0:00:47]} 22. g4 {[%emt 0:00:51]} Ne4 {[%emt 0:04:55]} 23. f5 {[%emt 0:03:20]} Rxc1 {[%emt 0:01:03]} 24. Qxc1 {[%emt 0:00:07]} Rc8 {[%emt 0:00:06]} 25. Qb2 {[%emt 0:01:56]} exf5 {[%emt 0:14:28]} 26. gxf5 {[%emt 0:00:45]} Bh4 {[%emt 0:00:17]} 27. f6 {[%emt 0:11:25]} Qd7 {[%emt 0:15:41]} 28. a4 {[%emt 0:11:19]} Bf2+ {[%emt 0:07:18]} 29. Kg2 {[%emt 0:06:39]} Qf5 {[%emt 0:00:14]} 30. Nc3 {[%emt 0:03:04]} Qg5+ {[%emt 0:00:23]} 31. Kf3 {[%emt 0:00:42]} Bh4 {[%emt 0:03:22]} 32. Nxd5 {[%emt 0:01:03]} h5 {[%emt 0:03:04]} 33. Ne7+ {[%emt 0:01:20]} Kf8 {[%emt 0:00:29]} 34. fxg7+ {[%emt 0:00:13]} Qxg7 {[%emt 0:00:44]} 35. Ng6+ {[%emt 0:00:49]} Qxg6 {[%emt 0:00:15]} 0-1

[Event "DEN-chT XtraCon 2018-19"]
[Site "Denmark"]
[Date "2018.11.18"]
[Round "3"]
[White "Brorsen, Jacob Abildlund"]
[Black "Ahlander, Bjorn"]
[Result "0-1"]
[ECO "B40"]
[WhiteElo "2147"]
[BlackElo "2409"]
[Annotator "ChessBase"]
[PlyCount "78"]
[EventDate "2018.10.27"]
[EventType "team-tourn"]
[EventCountry "DEN"]
[SourceTitle "playchess.com"]
[Source "ChessBase"]
[SourceQuality "1"]
[TimeControl "40/5400+30:1800+30"]

1. e4 {[%emt 0:00:00]} c5 {[%emt 0:00:00]} 2. Nf3 {[%emt 0:00:00]} e6 {[%emt 0:00:00]} 3. g3 {[%emt 0:00:38]} Nc6 {[%emt 0:00:49]} 4. Bg2 {[%emt 0:00:23]} Nf6 {[%emt 0:01:12]} 5. Nc3 {[%emt 0:06:03]} d6 {[%emt 0:04:29]} 6. d4 {[%emt 0:00:52]} cxd4 {[%emt 0:00:07]} 7. Nxd4 {[%emt 0:00:06]} Bd7 {[%emt 0:00:30]} 8. O-O {[%emt 0:01:24]} Be7 {[%emt 0:00:04]} 9. b3 {[%emt 0:06:24]} O-O {[%emt 0:01:24]} 10. Bb2 {[%emt 0:00:28]} a6 {[%emt 0:00:39]} 11. Nce2 {[%emt 0:03:53]} Nxd4 {[%emt 0:10:34]} 12. Nxd4 {[%emt 0:01:41]} Rc8 {[%emt 0:00:04]} 13. c4 {[%emt 0:05:00]} b5 {[%emt 0:00:15]} 14. cxb5 {[%emt 0:03:37]} axb5 {[%emt 0:00:04]} 15. Qd2 {[%emt 0:13:48]} Qb6 {[%emt 0:01:05]} 16. Rfe1 {[%emt 0:07:12]} Rfd8 {[%emt 0:02:52]} 17. Rac1 {[%emt 0:09:38]} g6 {[%emt 0:01:35]} 18. Nc2 {[%emt 0:03:47]} Bc6 {[%emt 0:05:53]} 19. Nb4 {[%emt 0:03:50]} Ba8 {[%emt 0:00:54]} 20. a3 {[%emt 0:11:52]} Rxc1 {[%emt 0:14:36]} 21. Qxc1 {[%emt 0:00:11]} Ng4 {[%emt 0:02:04]} 22. Qf4 {[%emt 0:01:42]} h5 {[%emt 0:01:19]} 23. Nd3 {[%emt 0:04:27]} e5 {[%emt 0:08:26]} 24. Qf3 {[%emt 0:05:20]} f5 {[%emt 0:22:00]} 25. Qe2 {[%emt 0:02:08]} Rf8 {[%emt 0:08:56]} 26. Rf1 {[%emt 0:03:18]} Qb7 {[%emt 0:03:47]} 27. Re1 {[%emt 0:00:57]} Nf6 {[%emt 0:02:25]} 28. Qe3 {[%emt 0:01:29]} Kh7 {[%emt 0:01:02]} 29. h3 {[%emt 0:01:58]} Nxe4 {[%emt 0:01:07]} 30. Bc1 {[%emt 0:00:30]} Rf6 {[%emt 0:03:28]} 31. f4 {[%emt 0:01:57]} Bf8 {[%emt 0:01:06]} 32. fxe5 {[%emt 0:00:23]} dxe5 {[%emt 0:00:03]} 33. b4 {[%emt 0:00:22]} Qc7 {[%emt 0:00:54]} 34. Kh2 {[%emt 0:01:07]} h4 {[%emt 0:01:14]} 35. Bxe4 {[%emt 0:00:13]} fxe4 {[%emt 0:00:38]} 36. Nc5 {[%emt 0:00:21]} Rf3 {[%emt 0:00:43]} 37. Qg5 {[%emt 0:00:32]} hxg3+ {[%emt 0:00:02]} 38. Kg2 {[%emt 0:00:16]} Qf7 {[%emt 0:00:28]} 39. Be3 {[%emt 0:00:39]} Qa2+ {[%emt 0:00:39]} 0-1

[Event "DEN-chT XtraCon 2018-19"]
[Site "Denmark"]
[Date "2018.11.18"]
[Round "3"]
[White "Svenninggaard, Thomas"]
[Black "Sorensen, Ivan"]
[Result "1/2-1/2"]
[ECO "C01"]
[WhiteElo "2122"]
[BlackElo "2062"]
[Annotator "NA"]
[PlyCount "39"]
[EventDate "2018.10.27"]
[EventType "team-tourn"]
[EventCountry "DEN"]
[SourceTitle "playchess.com"]
[Source "ChessBase"]
[SourceQuality "1"]
[TimeControl "40/5400+30:1800+30"]

1. e4 {[%emt 0:00:00]} e6 {[%emt 0:00:00]} 2. d4 {[%emt 0:00:40]} d5 {[%emt 0:00:00]} 3. exd5 {[%emt 0:00:14]} exd5 {[%emt 0:00:00]} 4. Bd3 {[%emt 0:00:09]} Bd6 {[%emt 0:00:26]} 5. c3 {[%emt 0:03:31]} Ne7 {[%emt 0:01:47]} 6. Qc2 {[%emt 0:00:44]} Bg4 {[%emt 0:05:34] C01: French: Exchange Variation} 7. Ne2 {[%emt 0:07:12]} Qd7 {[%emt 0:06:51]} 8. Bg5 {[%emt 0:07:02]} Bf5 {[%emt 0:05:14]} 9. Bxe7 $146 {[%emt 0:03:42]} ({Predecessor:} 9. Nd2 O-O 10. O-O-O Bxd3 11. Qxd3 Qf5 12. Qe3 Re8 13. Ng3 Qd7 14. Qf3 {0-1 (31) Kocur,A (1922)-Zavesicky,P (2049) Czechia 2010}) 9... Bxd3 {[%emt 0:01:42]} 10. Qxd3 {[%emt 0:00:26]} Qxe7 {[%emt 0:00:39]} 11. Nd2 {[%emt 0:07:38]} c6 {[%emt 0:01:49]} 12. O-O-O {[%emt 0:01:50]} Nd7 {[%emt 0:09:34]} 13. Ng3 {[%emt 0:01:19]} O-O-O {[%emt 0:00:22]} 14. Nf5 {[%emt 0:02:00]} Qf6 {[%emt 0:02:08]} 15. Nxd6+ {[%emt 0:01:49]} Qxd6 {[%emt 0:00:09]} 16. Rde1 {[%emt 0:01:10]} h6 {[%emt 0:19:18]} 17. g3 {[%emt 0:08:22]} Rde8 {[%emt 0:06:51]} 18. Re3 {[%emt 0:08:22]} Rxe3 {[%emt 0:08:05]} 19. fxe3 {[%emt 0:00:20]} Nf6 {[%emt 0:03:57]} 20. Qf5+ $11 {[%emt 0:05:53] Qd8} 1/2-1/2

[Event "DEN-chT XtraCon 2018-19"]
[Site "Denmark"]
[Date "2018.11.18"]
[Round "3"]
[White "Firooznia, Farzam"]
[Black "Andersen, Ib Hother"]
[Result "1/2-1/2"]
[ECO "C45"]
[WhiteElo "2094"]
[BlackElo "2161"]
[Annotator "NA"]
[PlyCount "60"]
[EventDate "2018.10.27"]
[EventType "team-tourn"]
[EventCountry "DEN"]
[SourceTitle "playchess.com"]
[Source "ChessBase"]
[SourceQuality "1"]
[TimeControl "40/5400+30:1800+30"]

1. e4 {[%emt 0:00:00]} e5 {[%emt 0:01:35]} 2. d4 {[%emt 0:00:00]} exd4 {[%emt 0:00:04]} 3. Nf3 {[%emt 0:00:00]} Nc6 {[%emt 0:00:21]} 4. Nxd4 {[%emt 0:00:00]} Nf6 {[%emt 0:00:07]} 5. Nxc6 {[%emt 0:00:00]} bxc6 {[%emt 0:00:06]} 6. e5 {[%emt 0:00:00]} Qe7 {[%emt 0:00:07]} 7. Qe2 {[%emt 0:00:00]} Nd5 {[%emt 0:00:06]} 8. c4 {[%emt 0:00:11]} Nb6 {[%emt 0:00:07]} 9. Nc3 {[%emt 0:00:32]} Qe6 {[%emt 0:00:10]} 10. Qe4 {[%emt 0:11:11]} g6 {C45: Scotch Game} 11. f4 {[%emt 0:02:12]} (11. Bd2 Bg7 12. c5 Nd5 13. Bc4 Qxe5 14. Qxe5+ Bxe5 15. Bxd5 cxd5 16. O-O-O O-O 17. Nxd5 Rb8 18. Bc3 Bxc3 19. Nxc3 {1-0 (49) Yu,Y (2729)-Dominguez Perez,L (2739) Doha 2016}) 11... Bg7 {[%emt 0:02:06]} 12. Be2 {[%emt 0:05:33]} O-O {[%emt 0:02:06]} 13. O-O {[%emt 0:00:46]} d5 {[%emt 0:17:12]} 14. exd6 {[%emt 0:09:53]} Bxc3 {[%emt 0:07:33]} 15. Qxe6 {[%emt 0:00:08]} Bxe6 {[%emt 0:00:08]} 16. bxc3 {[%emt 0:00:11]} cxd6 {[%emt 0:05:31]} 17. c5 {[%emt 0:04:22]} dxc5 {[%emt 0:00:05]} 18. Ba3 {[%emt 0:01:49]} Na4 $146 {[%emt 0:28:42]} 19. Rfc1 {[%emt 0:03:53]} Rfd8 {[%emt 0:00:37]} 20. Bd1 {[%emt 0:01:29]} Nb6 {[%emt 0:00:11]} 21. Bxc5 {[%emt 0:02:00]} Rd2 {[%emt 0:00:56]} 22. Bf3 {[%emt 0:12:13]} Bd5 {[%emt 0:01:59]} 23. Rf1 {[%emt 0:05:18]} Rd8 $11 {[%emt 0:20:11]} 24. Bd4 {[%emt 0:04:40]} Re8 {[%emt 0:04:44]} 25. Rae1 {[%emt 0:04:40]} Rxe1 26. Rxe1 {[%emt 0:00:06]} Kf8 {[%emt 0:00:48]} 27. Bc5+ {[%emt 0:10:06]} Kg7 {[%emt 0:00:08]} 28. Bd4+ {[%emt 0:06:53]} Kf8 {[%emt 0:00:56]} 29. Bc5+ {[%emt 0:02:17]} Kg7 {[%emt 0:00:05]} 30. Bd4+ {[%emt 0:10:50]} Kf8 {[%emt 0:01:39]} 1/2-1/2

[Event "DEN-chT XtraCon 2018-19"]
[Site "Denmark"]
[Date "2018.12.09"]
[Round "4"]
[White "Brunello, Sabino"]
[Black "Kristensen, Kaare Hove"]
[Result "1-0"]
[ECO "D11"]
[WhiteElo "2532"]
[BlackElo "2305"]
[Annotator "ChessBase"]
[PlyCount "57"]
[EventDate "2018.10.27"]
[EventType "team-tourn"]
[EventCountry "DEN"]
[SourceTitle "playchess.com"]
[Source "ChessBase"]
[SourceQuality "1"]
[TimeControl "40/5400+30:1800+30"]

1. d4 {[%emt 0:00:00]} d5 {[%emt 0:00:00]} 2. c4 {[%emt 0:00:00]} c6 {[%emt 0:00:44]} 3. e3 {[%emt 0:01:46]} Nf6 {[%emt 0:02:26]} 4. Nf3 {[%emt 0:00:13]} Bg4 {[%emt 0:00:17]} 5. h3 {[%emt 0:00:13]} Bxf3 {[%emt 0:01:25]} 6. Qxf3 {[%emt 0:00:07]} Nbd7 {[%emt 0:01:02]} 7. Nc3 {[%emt 0:00:17]} e6 {[%emt 0:00:35]} 8. a3 {[%emt 0:01:14]} Bd6 {[%emt 0:04:57]} 9. g4 {[%emt 0:00:42]} dxc4 {[%emt 0:09:38]} 10. Bxc4 {[%emt 0:10:24]} O-O {[%emt 0:03:35]} 11. g5 {[%emt 0:11:28]} Nd5 {[%emt 0:02:06]} 12. h4 {[%emt 0:00:12]} Qe7 {[%emt 0:15:48]} 13. e4 {[%emt 0:15:54]} N5b6 {[%emt 0:05:38]} 14. Ba2 {[%emt 0:02:00]} e5 {[%emt 0:12:22]} 15. d5 {[%emt 0:02:42]} cxd5 {[%emt 0:02:37]} 16. Nxd5 {[%emt 0:15:47]} Nxd5 {[%emt 0:01:26]} 17. Bxd5 {[%emt 0:00:10]} Nc5 {[%emt 0:08:45]} 18. g6 {[%emt 0:05:09]} Kh8 {[%emt 0:06:02]} 19. Bg5 {[%emt 0:07:00]} Qd7 {[%emt 0:00:39]} 20. gxf7 {[%emt 0:02:12]} Ne6 {[%emt 0:07:33]} 21. Qf5 {[%emt 0:01:35]} Nc5 {[%emt 0:00:05]} 22. Qxd7 {[%emt 0:01:17]} Nxd7 {[%emt 0:00:06]} 23. Rd1 {[%emt 0:00:56]} Nf6 {[%emt 0:03:30]} 24. Bxf6 {[%emt 0:00:18]} gxf6 {[%emt 0:00:05]} 25. Rg1 {[%emt 0:00:09]} h6 {[%emt 0:00:17]} 26. Ke2 {[%emt 0:01:42]} Be7 {[%emt 0:04:39]} 27. Rg6 {[%emt 0:01:43]} Kh7 {[%emt 0:03:26]} 28. Rdg1 {[%emt 0:00:10]} h5 {[%emt 0:00:24]} 29. Be6 {[%emt 0:00:51]} 1-0

[Event "DEN-chT XtraCon 2018-19"]
[Site "Denmark"]
[Date "2018.12.09"]
[Round "4"]
[White "Pilgaard, Kim"]
[Black "Borovnica, Tihomir"]
[Result "1-0"]
[ECO "A58"]
[WhiteElo "2407"]
[BlackElo "2270"]
[Annotator "ChessBase"]
[PlyCount "131"]
[EventDate "2018.10.27"]
[EventType "team-tourn"]
[EventCountry "DEN"]
[SourceTitle "playchess.com"]
[Source "ChessBase"]
[SourceQuality "1"]
[TimeControl "40/5400+30:1800+30"]

1. d4 {[%emt 0:00:00]} Nf6 {[%emt 0:00:47]} 2. c4 {[%emt 0:00:24]} c5 {[%emt 0:00:06]} 3. d5 {[%emt 0:00:38]} b5 {[%emt 0:00:07]} 4. cxb5 {[%emt 0:00:18]} a6 {[%emt 0:00:05]} 5. bxa6 {[%emt 0:00:20]} g6 {[%emt 0:00:06]} 6. Nc3 {[%emt 0:00:26]} Bxa6 {[%emt 0:00:04]} 7. g3 {[%emt 0:00:24]} d6 {[%emt 0:00:09]} 8. Bg2 {[%emt 0:00:14]} Bg7 {[%emt 0:00:04]} 9. Nf3 {[%emt 0:00:15]} Nbd7 {[%emt 0:00:06]} 10. Rb1 {[%emt 0:00:25]} O-O {[%emt 0:00:05]} 11. O-O {[%emt 0:00:12]} Qa5 {[%emt 0:00:12]} 12. Bd2 {[%emt 0:00:58]} Rfb8 {[%emt 0:06:04]} 13. Qc2 {[%emt 0:01:56]} Bb7 {[%emt 0:00:14]} 14. b3 {[%emt 0:06:23]} Qa7 {[%emt 0:01:40]} 15. e4 {[%emt 0:00:52]} Ba6 {[%emt 0:01:30]} 16. Rfd1 {[%emt 0:01:43]} Ng4 {[%emt 0:03:00]} 17. h3 {[%emt 0:02:51]} Nge5 {[%emt 0:00:11]} 18. Nxe5 {[%emt 0:09:29]} Nxe5 {[%emt 0:00:06]} 19. Be3 {[%emt 0:00:20]} Qc7 {[%emt 0:22:14]} 20. f4 {[%emt 0:01:27]} Nd7 {[%emt 0:01:54]} 21. a4 {[%emt 0:02:19]} Ra7 {[%emt 0:19:36]} 22. Na2 {[%emt 0:15:49]} Nb6 {[%emt 0:22:13]} 23. Rdc1 {[%emt 0:19:05]} Bc8 {[%emt 0:08:07]} 24. Kh2 {[%emt 0:01:48]} Qd8 {[%emt 0:02:39]} 25. Qd2 {[%emt 0:05:35]} Nd7 {[%emt 0:01:49]} 26. Nc3 {[%emt 0:03:17]} Ba6 {[%emt 0:00:10]} 27. b4 {[%emt 0:04:37]} Bxc3 {[%emt 0:00:47]} 28. Qxc3 {[%emt 0:01:06]} cxb4 {[%emt 0:00:13]} 29. Rxb4 {[%emt 0:00:45]} Rxb4 {[%emt 0:02:03]} 30. Qxb4 {[%emt 0:00:25]} Rb7 {[%emt 0:02:28]} 31. Qc3 {[%emt 0:01:08]} Rb8 {[%emt 0:01:35]} 32. e5 {[%emt 0:02:36]} Rc8 {[%emt 0:01:19]} 33. Qd4 {[%emt 0:00:10]} Nc5 {[%emt 0:00:21]} 34. Qd2 {[%emt 0:03:04]} Nxa4 {[%emt 0:00:26]} 35. Rxc8 {[%emt 0:00:28]} Qxc8 {[%emt 0:00:30]} 36. exd6 {[%emt 0:00:53]} exd6 {[%emt 0:00:05]} 37. Bd4 {[%emt 0:02:10]} Nc5 {[%emt 0:00:16]} 38. Qe3 {[%emt 0:00:26]} Bb5 {[%emt 0:00:25]} 39. Qe7 {[%emt 0:00:29]} Nd7 {[%emt 0:02:38]} 40. Qxd6 Qc2 {[%emt 0:00:28]} 41. Kh1 {[%emt 0:34:30]} Qb1+ {[%emt 0:18:40]} 42. Bg1 {[%emt 0:00:00]} Bf1 {[%emt 0:03:29]} 43. Qxd7 {[%emt 0:00:00]} Bxg2+ {[%emt 0:00:09]} 44. Kxg2 {[%emt 0:00:00]} Qe4+ {[%emt 0:00:04]} 45. Kf2 {[%emt 0:00:00]} Qd4+ {[%emt 0:03:04]} 46. Kf3 {[%emt 0:00:00]} Qxg1 {[%emt 0:01:05]} 47. Qe8+ {[%emt 0:00:00]} Kg7 {[%emt 0:00:09]} 48. Qe5+ {[%emt 0:00:00]} Kh6 {[%emt 0:06:25]} 49. d6 {[%emt 0:00:00]} Qf1+ {[%emt 0:00:46]} 50. Ke4 {[%emt 0:00:00]} Qb1+ {[%emt 0:00:47]} 51. Kd5 {[%emt 0:00:00]} Qb5+ {[%emt 0:00:04]} 52. Kd4 {[%emt 0:00:00]} Qb4+ {[%emt 0:01:08]} 53. Ke3 {[%emt 0:00:00]} Qe1+ {[%emt 0:00:08]} 54. Kd3 {[%emt 0:00:00]} Qf1+ 55. Kd4 {[%emt 0:00:00]} Qxh3 56. Qe7 {[%emt 0:00:00]} Qf1 57. Qxf7 {[%emt 0:00:00]} Qa1+ 58. Kc5 {[%emt 0:00:22]} Qa3+ 59. Kc6 {[%emt 0:00:30]} Qa4+ 60. Kb7 {[%emt 0:00:30]} Qb4+ 61. Kc7 {[%emt 0:00:30]} Qc5+ 62. Kd7 {[%emt 0:00:30]} Qa7+ 63. Ke8 {[%emt 0:00:30]} Qa8+ 64. Ke7 {[%emt 0:00:30]} Qa3 65. g4 {[%emt 0:00:30]} Qe3+ 66. Kf8 {[%emt 0:00:30]} 1-0

[Event "DEN-chT XtraCon 2018-19"]
[Site "Denmark"]
[Date "2018.12.09"]
[Round "4"]
[White "Percivaldi, Martin"]
[Black "Jakobsen, Peter"]
[Result "1-0"]
[ECO "B50"]
[WhiteElo "2393"]
[BlackElo "2186"]
[Annotator "NA"]
[PlyCount "149"]
[EventDate "2018.10.27"]
[EventType "team-tourn"]
[EventCountry "DEN"]
[SourceTitle "playchess.com"]
[Source "ChessBase"]
[SourceQuality "1"]
[TimeControl "40/5400+30:1800+30"]

1. e4 {[%emt 0:00:00]} c5 {[%emt 0:00:00]} 2. Nf3 {[%emt 0:00:00]} d6 {[%emt 0:00:00]} 3. g3 {[%emt 0:00:00]} Nc6 {[%emt 0:00:06]} 4. Bg2 {[%emt 0:00:06]} g6 {[%emt 0:00:59]} 5. O-O {[%emt 0:00:12]} Bg7 {[%emt 0:00:05]} 6. c3 {[%emt 0:00:12]} e5 {[%emt 0:06:03]} 7. a3 {[%emt 0:01:00]} Nge7 {[%emt 0:00:19]} 8. b4 {[%emt 0:01:14]} a6 {[%emt 0:03:57]} 9. d3 {[%emt 0:00:50]} O-O {[%emt 0:01:33]} 10. Nbd2 {[%emt 0:02:11]} h6 {[%emt 0:08:28]} 11. Bb2 {[%emt 0:10:55]} Be6 {[%emt 0:00:43]} 12. Re1 {[%emt 0:01:15]} Rc8 {[%emt 0:07:25]} 13. Rb1 {[%emt 0:20:48]} Qc7 {[%emt 0:06:57]} 14. d4 {[%emt 0:04:29]} cxd4 {[%emt 0:06:34]} 15. cxd4 {[%emt 0:01:27]} exd4 {[%emt 0:03:35]} 16. Nb3 {[%emt 0:00:39]} Bg4 {[%emt 0:08:44]} 17. Nbxd4 {[%emt 0:05:30]} Nxd4 {[%emt 0:02:43]} 18. Bxd4 {[%emt 0:00:09]} Bxd4 {[%emt 0:08:38]} 19. Qxd4 {[%emt 0:00:03]} Bxf3 {[%emt 0:02:53]} 20. Bxf3 {[%emt 0:00:19]} Nc6 {[%emt 0:00:06]} 21. Qe3 {[%emt 0:03:26]} Ne5 {[%emt 0:00:52]} 22. Be2 {[%emt 0:00:10]} Qc3 {[%emt 0:06:57]} 23. Qxh6 {[%emt 0:04:10]} Qxa3 {[%emt 0:00:20]} 24. Qd2 {[%emt 0:02:24]} Rfd8 {[%emt 0:07:22]} 25. Rec1 {[%emt 0:01:21]} Nf3+ {[%emt 0:10:57]} 26. Bxf3 {[%emt 0:00:46]} Qxf3 {[%emt 0:00:02]} 27. Qd5 {[%emt 0:01:11]} b5 {[%emt 0:01:45]} 28. h4 {[%emt 0:04:43]} Re8 {[%emt 0:00:44]} 29. Rxc8 {[%emt 0:12:30]} Rxc8 {[%emt 0:00:02]} 30. Qxd6 {[%emt 0:00:13]} Qxe4 {[%emt 0:00:49]} 31. Rd1 {[%emt 0:01:01]} Qc6 {[%emt 0:00:39]} 32. Qe5 {[%emt 0:06:14]} Re8 {[%emt 0:00:25]} 33. Qf4 {[%emt 0:01:02]} Qe4 {[%emt 0:00:53]} 34. Qd6 {[%emt 0:04:44]} Qe6 {[%emt 0:00:42]} 35. Qd4 {[%emt 0:01:35]} Rc8 {[%emt 0:01:00]} 36. Qa1 {[%emt 0:01:42]} Qb3 {[%emt 0:01:37]} 37. Rb1 {[%emt 0:00:31]} Qe6 {[%emt 0:00:24]} 38. Re1 {[%emt 0:00:05]} Qc6 {[%emt 0:00:27]} 39. Qe5 {[%emt 0:01:18]} Qc3 {[%emt 0:00:35]} 40. Qe7 {[%emt 0:01:52]} Qc7 {[%emt 0:00:47]} 41. Qg5 {[%emt 0:33:19]} Qc3 {[%emt 0:07:11]} 42. Qe7 {[%emt 0:00:00]} Qc7 {[%emt 0:00:10]} 43. Qf6 {[%emt 0:00:00]} Qc6 {[%emt 0:00:39]} 44. Qe5 {[%emt 0:00:00]} Qc3 {[%emt 0:00:39]} 45. Qe4 {[%emt 0:00:00]} Qc6 {[%emt 0:00:52]} 46. Qf4 {[%emt 0:00:00]} Qc4 {[%emt 0:01:01]} 47. Qd6 {[%emt 0:00:00]} Qc6 {[%emt 0:00:32]} 48. Qe7 {[%emt 0:00:00]} Qc7 {[%emt 0:00:16]} 49. Qe4 {[%emt 0:00:00]} Qc6 {[%emt 0:00:10]} 50. Qg4 {[%emt 0:00:00]} Re8 {[%emt 0:05:51]} 51. Rxe8+ {[%emt 0:00:00]} Qxe8 {[%emt 0:00:01]} 52. h5 {[%emt 0:00:00]} Kg7 {[%emt 0:03:01]} 53. Qd4+ {[%emt 0:00:00]} Kh7 {[%emt 0:01:07]} 54. hxg6+ {[%emt 0:00:00]} fxg6 {[%emt 0:03:53]} 55. Qa7+ {[%emt 0:00:00]} Kh6 {[%emt 0:02:54]} 56. Qe3+ {[%emt 0:00:00]} Qxe3 {[%emt 0:00:01]} 57. fxe3 {[%emt 0:00:00]} a5 {[%emt 0:03:11]} 58. bxa5 {[%emt 0:00:00]} b4 {[%emt 0:00:05]} 59. a6 {[%emt 0:00:00]} b3 {[%emt 0:00:03]} 60. a7 {[%emt 0:00:00]} b2 {[%emt 0:00:03]} 61. a8=Q {[%emt 0:00:00]} b1=Q+ {[%emt 0:00:06]} 62. Kh2 {[%emt 0:00:00]} Qc2+ {[%emt 0:01:35]} 63. Qg2 {[%emt 0:00:00]} Qd3 {[%emt 0:01:10]} 64. Qf3 {[%emt 0:00:00]} Qc2+ {[%emt 0:01:15]} 65. Kh3 {[%emt 0:00:00]} Qd3 {[%emt 0:01:32]} 66. Qf4+ {[%emt 0:00:00]} Kh7 {[%emt 0:00:57]} 67. Qf3 {[%emt 0:01:41]} Kh6 {[%emt 0:00:52]} 68. g4 {[%emt 0:00:05]} Qd7 {[%emt 0:03:06]} 69. Kg3 {[%emt 0:00:28]} Qd3 {[%emt 0:00:24]} 70. Qf4+ {[%emt 0:00:18]} Kh7 {[%emt 0:00:11]} 71. Qf7+ {[%emt 0:00:46]} Kh6 {[%emt 0:00:14]} 72. g5+ {[%emt 0:00:17]} Kh5 {[%emt 0:00:37]} 73. Qf3+ {[%emt 0:00:06]} Kxg5 {[%emt 0:00:05]} 74. Qf4+ {[%emt 0:00:04]} Kh5 {[%emt 0:00:04]} 75. Qh4# 1-0

[Event "DEN-chT XtraCon 2018-19"]
[Site "Denmark"]
[Date "2018.12.09"]
[Round "4"]
[White "Sorensen, Jan"]
[Black "Matthiesen, Arne"]
[Result "1-0"]
[ECO "B27"]
[WhiteElo "2391"]
[BlackElo "2297"]
[Annotator "NA"]
[PlyCount "91"]
[EventDate "2018.10.27"]
[EventType "team-tourn"]
[EventCountry "DEN"]
[SourceTitle "playchess.com"]
[Source "ChessBase"]
[SourceQuality "1"]
[TimeControl "40/5400+30:1800+30"]

1. e4 {[%emt 0:00:00]} c5 {[%emt 0:00:02]} 2. Nf3 {[%emt 0:00:00]} g6 {[%emt 0:00:34]} 3. Bc4 {[%emt 0:02:02]} Bg7 {[%emt 0:00:46]} 4. c3 {[%emt 0:00:13]} e6 {[%emt 0:01:01]} 5. O-O {[%emt 0:00:42]} Ne7 {[%emt 0:01:22]} 6. d4 {[%emt 0:00:41]} cxd4 {[%emt 0:01:30]} 7. Nxd4 {[%emt 0:00:16]} a6 {[%emt 0:08:06]} 8. Bg5 {[%emt 0:02:11]} Qc7 {[%emt 0:10:46]} 9. Nd2 {[%emt 0:07:22]} Nbc6 {[%emt 0:02:10]} 10. Bb3 {[%emt 0:11:24]} O-O {[%emt 0:08:43]} 11. N2f3 {[%emt 0:03:21]} h6 {[%emt 0:10:05]} 12. Bh4 {[%emt 0:05:15]} b5 {[%emt 0:19:14]} 13. Qd2 {[%emt 0:09:43]} Bb7 {[%emt 0:00:49]} 14. Rad1 {[%emt 0:00:47]} Nxd4 {[%emt 0:06:19]} 15. Nxd4 {[%emt 0:06:55]} Nc6 {[%emt 0:04:15]} 16. Bg3 {[%emt 0:21:28]} Qb6 {[%emt 0:01:51]} 17. Nc2 {[%emt 0:02:09]} Na5 {[%emt 0:03:09]} 18. Bd6 {[%emt 0:02:08]} Rfc8 {[%emt 0:04:33]} 19. e5 {[%emt 0:01:23]} Nc4 {[%emt 0:02:50]} 20. Bxc4 {[%emt 0:00:37]} Rxc4 {[%emt 0:00:12]} 21. Rfe1 {[%emt 0:04:49]} h5 {[%emt 0:02:04]} 22. Ne3 {[%emt 0:02:00]} Rcc8 {[%emt 0:07:10]} 23. f3 {[%emt 0:03:43]} a5 {[%emt 0:00:05]} 24. a3 {[%emt 0:00:37]} Re8 {[%emt 0:01:59]} 25. Kh1 {[%emt 0:00:49]} Rac8 {[%emt 0:00:21]} 26. Qd3 {[%emt 0:00:50]} Qc6 {[%emt 0:01:00]} 27. Qd4 {[%emt 0:00:45]} Bh6 {[%emt 0:00:30]} 28. Qh4 {[%emt 0:03:51]} Bg7 {[%emt 0:00:35]} 29. Rd4 {[%emt 0:01:20]} Qb6 {[%emt 0:00:50]} 30. Qg5 {[%emt 0:01:16]} Qd8 {[%emt 0:00:52]} 31. Qf4 {[%emt 0:01:22]} g5 {[%emt 0:00:19]} 32. Qg3 {[%emt 0:00:05]} f5 {[%emt 0:00:07]} 33. exf6 {[%emt 0:01:02]} Qxf6 {[%emt 0:00:05]} 34. f4 {[%emt 0:01:28]} Qg6 {[%emt 0:01:04]} 35. Rdd1 {[%emt 0:01:17]} g4 {[%emt 0:01:19]} 36. h3 {[%emt 0:00:18]} Be4 {[%emt 0:00:44]} 37. hxg4 {[%emt 0:00:30]} hxg4 {[%emt 0:00:25]} 38. Qxg4 {[%emt 0:00:16]} Qh6+ {[%emt 0:00:37]} 39. Kg1 {[%emt 0:00:06]} Kh8 {[%emt 0:00:11]} 40. Kf2 {[%emt 0:00:43]} Qg6 {[%emt 0:00:51]} 41. Rh1+ {[%emt 0:06:57]} Kg8 {[%emt 0:00:04]} 42. Rh5 {[%emt 0:00:32]} Qxg4 {[%emt 0:08:30]} 43. Nxg4 {[%emt 0:00:06]} b4 {[%emt 0:00:10]} 44. axb4 {[%emt 0:01:36]} axb4 {[%emt 0:00:01]} 45. Be5 {[%emt 0:08:55]} Bxe5 {[%emt 0:01:24]} 46. fxe5 {[%emt 0:00:07]} 1-0